Cogmind - Beta 13 @@@ ROGUE MODE // 2024.06.15 @ 13:29:36 Player: SovietPaperclip Result: Self-destructed Performance ------------- Evolutions (1) 500 Regions Visited (3) 600 Robots Destroyed (20) 100 Value Destroyed (424) 424 Prototype IDs (0) 0 Alien Tech Used (0) 0 Bonus (0) 0 TOTAL SCORE: 1624 Bonus ------- None Cogmind --------- Core Integrity 387/400 Matter 258/300 Energy 125/125 System Corruption 0% Temperature Cool (0) Movement Treading (240) Ox1 Location -9/Materials Parts ------- > --- POWER (1) -------- Light Ion Engine > --- PROPULSION (3) --- Light Treads > --- UTILITY (3) ------ Large Storage Unit Targeting Computer Improved Weapon Shielding > --- WEAPON (2) ------- Assault Rifle Grenade Launcher > --- INVENTORY (15) --- Light Treads Light Treads Light Treads High-capacity Matter Pod (0) Grenade Launcher Peak State ------------ > --- POWER ------------ Light Ion Engine > --- PROPULSION ------- Light Treads Light Treads > --- UTILITY ---------- Large Storage Unit Targeting Computer Improved Weapon Shielding > --- WEAPON ----------- Assault Rifle Grenade Launcher > --- INVENTORY -------- Light Treads Light Treads Light Treads High-capacity Matter Pod Grenade Launcher [Rating: 10] Favorites ----------- Power Ion Engine Engine Ion Engine Propulsion Light Treads Treads Light Treads Utility Large Storage Unit Storage Large Storage Unit Processor Targeting Computer Protection Improved Weapon Shielding Weapon Assault Rifle Ballistic Gun Assault Rifle Launcher Grenade Launcher Build | -11 -10 -10 -9 ------- Run | Yrd Mat Min Mat Slots Evolved 2 | . . . 2 Power . | . . . . Propulsion 1 | . . . 1 Utility 1 | . . . 1 Weapon . | . . . . Parts Attached 11 | 6 1 1 3 Power 2 | 1 . . 1 Engine 2 | 1 . . 1 Core . | . . . . Reactor . | . . . . Propulsion 2 | 2 . . . Treads 2 | 2 . . . Leg . | . . . . Wheel . | . . . . Hover . | . . . . Flight . | . . . . Utility 4 | 1 1 . 2 Device . | . . . . Storage 2 | 1 1 . . Processor 1 | . . . 1 Hackware . | . . . . Protection 1 | . . . 1 Artifact . | . . . . Weapon 3 | 2 . 1 . Energy Gun . | . . . . Energy Cannon . | . . . . Ballistic Gun 2 | 2 . . . Ballistic Cannon . | . . . . Launcher 1 | . . 1 . Special Weapon . | . . . . Impact Weapon . | . . . . Slashing Weapon . | . . . . Piercing Weapon . | . . . . Special Melee Weapon . | . . . . Unidentified Prototypes . | . . . . Parts Lost 3 | . 2 . 1 Power 1 | . 1 . . Propulsion 1 | . . . 1 Utility . | . . . . Weapon 1 | . 1 . . Highest Loss Streak 2 | . 2 . 1 To Critical Strikes . | . . . . Average Slot Usage (%) 70 | . 75 58 70 Engine 6 | . 8 . 6 Treads 25 | . 28 28 16 Storage 13 | . 14 14 11 Processor 1 | . . . 5 Protection 1 | . . . 9 Ballistic Gun 18 | . 23 14 11 Launcher 2 | . . 1 11 Naked Turns . | . . . . Heaviest Build 30 | 14 29 25 30 Greatest Support 40 | 40 40 40 40 Greatest Overweight (x) 1 | . . . 1 Average Overweight (x) . | . . . . Largest Inventory Capacity 15 | 8 15 15 15 Average Capacity 14 | 6 14 15 15 Most Carried 7 | 3 7 7 7 Average Carried 4 | . 3 6 5 Final Capacity 15 | 8 15 15 15 Final Carried 7 | 1 7 6 5 Class Distribution -------------------- 100% | Mutant Dominant Class ---------------- Mutant | -10/Materials Mutant | -10/Mines Mutant | -9/Materials Resources | -11 -10 -10 -9 ----------- Run | Yrd Mat Min Mat Matter Collected 559 | 222 243 27 67 Remotely . | . . . . Salvage Created 491 | . 434 29 28 Parts 34 | . 25 5 4 Haulers Intercepted 2 | . 2 . . Recyclers Shooed . | . . . . Parts Field Recycled . | . . . . Retrieved Matter . | . . . . Parts Self-Destructed . | . . . . Prevented . | . . . . Kills | -11 -10 -10 -9 ------- Run | Yrd Mat Min Mat Combat Hostiles Destroyed 17 | . 10 3 4 Guns 11 | . 10 1 . AOE 6 | . . 2 4 Classes Destroyed 4 | . 4 . . Hauler 2 | . 2 . . Watcher 1 | . 1 . . Swarmer 10 | . 3 3 4 Grunt 7 | . 7 . . Best Kill Streak 4 | . 4 3 4 Combat Bots Only 4 | . 3 3 4 Max Kills in Single Turn 2 | . 1 2 2 Gunslinging . | . . . . Exploded 2 | . . 2 2 Melee . | . . . . Uniques/NPCs Destroyed . | . . . . Combat | -11 -10 -10 -9 -------- Run | Yrd Mat Min Mat Hostile Shots Fired 92 | . 76 10 6 Missed 22 | . 18 3 1 Damage Taken 748 | . 652 54 42 Core 133 | . 104 16 13 Absorbed by Shields . | . . . . Redirected to Shielding 11 | . . . 11 Core Remaining (%) 76 | 100 . 52 . Volleys Fired 57 | . 48 7 2 Largest 2 | . 2 2 1 Hottest 50 | . 40 50 30 Shots Fired 95 | . 85 8 2 Gun 92 | . 85 7 . Cannon . | . . . . Launcher 3 | . . 1 2 Special . | . . . . Kinetic 92 | . 85 7 . Thermal . | . . . . Explosive 3 | . . 1 2 Electromagnetic . | . . . . Robot Hit Streak 8 | . 8 2 . Robot Miss Streak 6 | . 6 4 1 Penetration Max . | . . . . Secondary Targets 2 | . 2 . . Max Gunslinging Chain 1 | . 1 . . Shots Hit Robots 50 | . 48 2 . Core Hits 30 | . 23 3 4 Critical Kills 1 | . 1 . . Critical Parts Destroyed 2 | . 2 . . Critical Strikes 3 | . 3 . . Destroy 3 | . 3 . . Melee Attacks . | . . . . Impact . | . . . . Slashing . | . . . . Piercing . | . . . . Sneak Attacks . | . . . . Combat Hostiles . | . . . . Follow-up Attacks . | . . . . Damage Inflicted 892 | . 629 106 157 Guns 654 | . 629 25 . Cannons . | . . . . Explosions 238 | . . 81 157 Melee . | . . . . Ramming . | . . . . Kinetic 654 | . 629 25 . Thermal . | . . . . Explosive 238 | . . 81 157 Electromagnetic . | . . . . Impact . | . . . . Slashing . | . . . . Piercing . | . . . . Highest Corruption . | . . . . Average Corruption . | . . . . Corruption Purged . | . . . . Corruption Blocked . | . . . . Overload Shots . | . . . . Overflow Damage 4 | . . . 4 Projectiles . | . . . . Explosions 4 | . . . 4 Melee . | . . . . Knockbacks . | . . . . Impact . | . . . . Kinetic . | . . . . Secondary . | . . . . Self-Inflicted Damage . | . . . . Shots . | . . . . Rammed . | . . . . Targets Rammed . | . . . . Kicked . | . . . . Crushed . | . . . . Highest Temperature 40 | . 40 . . Average Temperature 19 | . 19 . . Received Heat Transfer 360 | . 360 . . Siege Activations . | . . . . Robots Corrupted . | . . . . Combat Hostiles . | . . . . Parts Fried . | . . . . Impact Corruptions . | . . . . Robots Melted . | . . . . Combat Hostiles . | . . . . Parts Melted 2 | . 2 . . Heat Transferred . | . . . . Parts Sabotaged . | . . . . Parts Stolen . | . . . . Parts Stripped . | . . . . Power Chain Reactions . | . . . . Alert | -11 -10 -10 -9 ------- Run | Yrd Mat Min Mat Peak Influence 285 | . 285 140 182 Initial 54 | . . 53 54 Average 92 | . 107 62 112 Maximum Alert Level 1 | . 1 . . Low Security (%) 87 | 100 78 100 100 Level 1 12 | . 21 . . Level 2 . | . . . . Level 3 . | . . . . Level 4 . | . . . . Level 5 . | . . . . High Security . | . . . . Max Security . | . . . . Squads Dispatched 1 | . 1 . . Investigation . | . . . . Extermination . | . . . . Reinforcement 1 | . 1 . . Assault . | . . . . Garrison . | . . . . Intercept . | . . . . Searches Triggered . | . . . . Construction Impeded . | . . . . Haulers Reinforced . | . . . . Active Scanning Responses . | . . . . Cargo Convoy Interrupts . | . . . . Stealth | -11 -10 -10 -9 --------- Run | Yrd Mat Min Mat Distress Signals 1 | . 1 . . Communications Jammed . | . . . . Distress Signals . | . . . . Times Spotted 27 | . 18 3 6 Peak Tracking Total 5 | . 5 3 4 Tactical Retreats 4 | . 4 . . Traps | -11 -10 -10 -9 ------- Run | Yrd Mat Min Mat Traps Triggered . | . . . . Indirectly . | . . . . Trap Hack Attempts . | . . . . Triggered . | . . . . Disarmed . | . . . . Reprogrammed . | . . . . Reused . | . . . . Traps Extracted . | . . . . Installed . | . . . . Triggered . | . . . . Machines | -11 -10 -10 -9 ---------- Run | Yrd Mat Min Mat Machines Disabled 4 | . 2 1 1 Max in Single Turn 1 | . 1 1 1 Machines Repaired . | . . . . Machines Dismantled . | . . . . Machines Sabotaged . | . . . . Overloaded Fab Kills . | . . . . Hacking | -11 -10 -10 -9 --------- Run | Yrd Mat Min Mat Machines Accessed 3 | . 1 . 2 Terminals 3 | . 1 . 2 Fabricators . | . . . . Repair Stations . | . . . . Recycling Units . | . . . . Scanalyzers . | . . . . Garrison Access . | . . . . Total Hacks 7 | . 2 . 5 Successful 1 | . 1 . . Failed 6 | . 1 . 5 Catastrophic 1 | . 1 . . Database Lockouts . | . . . . Manual 4 | . 2 . 2 Terminals 7 | . 2 . 5 Fabricators . | . . . . Repair Stations . | . . . . Recycling Units . | . . . . Scanalyzers . | . . . . Garrison Access . | . . . . Terminal Hacks . | . . . . Fabricator Hacks . | . . . . Repair Station Hacks . | . . . . Recycling Unit Hacks . | . . . . Scanalyzer . | . . . . Garrison Access Hacks . | . . . . Unauthorized Hacks 1 | . 1 . . Terminals 1 | . 1 . . Botnet 1 | . 1 . . Fabricators . | . . . . Repair Stations . | . . . . Recycling Units . | . . . . Scanalyzers . | . . . . Garrison Access . | . . . . Data Cores Recovered . | . . . . Used . | . . . . Hacking Detections 3 | . 1 . 2 Full Trace Events . | . . . . Feedback Events . | . . . . Feedback Blocked . | . . . . Robot Schematics Acquired . | . . . . Robots Built . | . . . . Authchips . | . . . . Time . | . . . . Total Robot Build Rating . | . . . . Part Schematics Acquired . | . . . . Parts Built . | . . . . Authchips . | . . . . Time . | . . . . Total Part Build Rating . | . . . . Parts Repaired . | . . . . Time . | . . . . Parts Recycled . | . . . . Recycled Matter . | . . . . Retrieved Matter . | . . . . Retrieved Components . | . . . . Parts Scanalyzed . | . . . . Part Schematics Acquired . | . . . . Parts Damaged . | . . . . Bothacking | -11 -10 -10 -9 ------------ Run | Yrd Mat Min Mat Used RIF Installer . | . . . . Robots Hacked . | . . . . Non-combat . | . . . . Combat . | . . . . Robot Hacks Applied . | . . . . Relay Couplers Released . | . . . . Fabnet Peak Effective % . | . . . . Robots Rewired . | . . . . Allies Hacked . | . . . . Hacks Repelled . | . . . . Allies | -11 -10 -10 -9 -------- Run | Yrd Mat Min Mat Total Allies . | . . . . Largest Group . | . . . . Highest-Rated Group . | . . . . Highest-Rated Ally . | . . . . Total Orders . | . . . . Ally Attacks . | . . . . Total Damage . | . . . . Kills . | . . . . Allies Corrupted . | . . . . Allies Melted . | . . . . Intel | -11 -10 -10 -9 ------- Run | Yrd Mat Min Mat Robot Analysis Total . | . . . . Derelict Logs Recovered 1 | . . 1 . Drone Launches . | . . . . Drone Recoveries . | . . . . Exploration | -11 -10 -10 -9 ------------- Run | Yrd Mat Min Mat Turns Passed 920 | 59 524 173 164 Spaces Moved 444 | 33 233 99 79 Core 3 | 3 . . . Treads 441 | 30 233 99 79 Legs . | . . . . Wheels . | . . . . Hover . | . . . . Flight . | . . . . Fastest Speed 50 | 50 160 160 160 Average Speed 165 | 150 160 160 194 Slowest Speed 240 | 160 160 160 240 Overloaded Moves . | . . . . Propulsion Burnouts . | . . . . Robots Hopped . | . . . . Cave-ins Triggered . | . . . . Exploration Rate (%) 21 | 3 38 30 14 Regions Visited 3 Branch Regions 1 Pre-discovered Areas . | . . . . Known Exits Taken . | . . . . Unknown Exits Taken 3 | 1 1 1 . Scrap Searched . | . . . . Spaces Dug . | . . . . Terrain Destroyed 5 | . . 2 3 Melee . | . . . . Projectile . | . . . . AOE 5 | . . 2 3 Terrain Rammed . | . . . . Walls Destroyed . | . . . . Machines Disabled . | . . . . Actions | -11 -10 -10 -9 --------- Run | Yrd Mat Min Mat Total 532 | 41 299 106 86 Wait 11 | . 11 . . Move 441 | 32 232 98 79 Hop . | . . . . Pick Up 10 | 3 6 . 1 Fast Attach 7 | 4 1 . 2 Attach 4 | 2 . 1 1 Detach . | . . . . Swap . | . . . . Drop 2 | . 1 . 1 Fire 57 | . 48 7 2 Melee . | . . . . Ram . | . . . . Kick . | . . . . Crush . | . . . . Escape Stasis . | . . . . Rewire . | . . . . Trap . | . . . . Miscellaneous . | . . . . Route ------- -11/Scrapyard -10/Materials (discovered 2 exits: *Mat / [*Min]) -10/Mines -9/Materials History --------- Turn | Location | Event 9 | -11/Scrapyard | Discovered new exit (range 15) 60 | -11/Scrapyard | Entered Materials 280 | -10/Materials | Discovered new exit (range 7) 317 | -10/Materials | Build established: Mutant 462 | -10/Materials | Discovered new exit (range 3) 584 | -10/Materials | Entered Mines 725 | -10/Mines | Learned Materials interactive machine intel 748 | -10/Mines | Discovered new exit (range 8) 757 | -10/Mines | Entered Materials 757 | -9/Materials | Evolved 2 slots: Propulsion x1, Utility x1 758 | -9/Materials | Loaded intel: 18 interactive machine locations 921 | -9/Materials | Self-destructed Last Messages --------------- payload. 00834_ S-10 Pest unfolds itself. 00834_ Lgt. Treads destroyed. 00835_ Electrolysis Chamber disabled. 00835_ S-10 Pest destroyed. 00835_ Destroyed Flight Unit. 00835_ S-10 Pest destroyed. 00850_ U-05 Engineer lays Concrete. 00851_ U-05 Engineer builds a Wall. 00852_ U-05 Engineer lays Concrete. 00858_ Acquired 58 matter. 00859_ U-05 Engineer lays Concrete. 00861_ Acquired 9 matter. 00861_ U-05 Engineer lays Concrete. 00862_ U-05 Engineer builds a Wall. 00862_ U-05 Engineer lays Concrete. 00877_ U-05 Engineer builds a Wall. 00877_ U-05 Engineer lays Concrete. 00882_ Connecting with Terminal... 00916_ K-01 Serf collects debris. Map ----- +----------------------------------------------------+ | ???????????????????? ??????????????????????????? | | ???????????????????? #?????????????????????????? | | ????????????????""?? #?????????????????????????? | | ???????????????S""?? #?????????????????????????? | | ???????????????""??? #?????????????????????????? | | ???????????????????? #?????????????????????????? | | ????????#+######???? #?????????????????????????? | | ????????# #???# #?????????????????????????? | | ?????#### #???# #?????????????????????????? | | ######### #???# +?????????????????????????? | | =! * %[ #???# #?????????????????????????? | | =! #???# #?????????????????????????? | | ! * #??## ##????????????????????????? | | " #### #???????? #??????????????? | | " #### +??????????????? | | T + ???????????????? | | #### ???????????????? | | ############## #????????????????????????? | | # ######### ??# #####????????????????????????? | | # # # ??# #????????????????????????????? | | # # # ?# #????????????????????????????? | | + + """ # ?# #???????????????? ##?????????? | | # # """ # #k############## [ !#?????????? | | # # """ # # u ?????????? | | # #?####### + T ??????????? | | # #???????# # @ k T???????? | | #???????# ###Y#########+##???????????????? | | #???????# ?? ?????????????????????????? | | #???????# ?# """ #???????????????????????? | | #???????# ??# """ #???????????????????????? | | #???????##+#??# """ #???????????????????????? | | #?????????????# #???????????????????????? | | # #?????????????# = #????????????????""""???? | | # #?????????????#### ###???????????????""S""???? | | # #?????????????????##?????????????????""?""???? | | # #????????????????????????????????????????????? | | # #????????????????????????????????????????????? | | # #????????????????????????????????????????????? | | # #????????????????????????????????????????????? | | # #????????????????????????????????????????????? | | # #????????????????????????????????????????????? | | # #????????????????????????????????????????????? | | + #????????????????????????????????????????????? | | # #????????????????????????????????????????????? | | # #????????????????????????????????????????????? | | # #????????????????????????????????????????????? | | #####????????????????????????????????????????????? | | ?????????????????????????????????????????????????? | | ?????????????????????????????????????????????????? | | ?????????????????????????????????????????????????? | +----------------------------------------------------+ Best States ------------- Heat Dissipation 28 Energy Generation 10 Energy Capacity 250 Matter Stores 262 Matter Capacity 300 Sight Range 16 Terrain Scan Density 10 Weapon Shielding 66 Evasion (%) 40 Targeting Accuracy 5 Recoil Reduction 2 Item Schematics ----------------- None Robot Schematics ------------------ None Fabricated ------------ Nothing Alien Tech Used ----------------- None Achievements -------------- None Challenges ------------ None Game ------ Seed MassSpliceWand Manual? 0 Play Time 00:05:48 Cumulative 127.5 hours Start 2024.06.15 @ 13:23:34 End 2024.06.15 @ 13:29:36 Sessions 3 Manual Loads 0 Difficulty Rogue Special Mode None Game No. 174 Rogue 174 Adventurer 0 Explorer 0 Win Type - Total 1 Types 1/0/0/0/0/0/0/0/0 Lore% 50 Gallery% 55 Achievement% 51 Wizard Run 0 Options --------- Layout 1 ASCII 0 Keyboard 0 Movement Mouse Keybinds 0 Fullscreen 1 Font 32/SmallcapsGlow Map View 50x35 Zoom Use 0% Tactical HUD 1 Map Filters NONE Filters NONE Steam 1 RUN: 08cfdb9a-ff22-4a0e-86d8-c0af9f203f83